bitfinex/quotes_BTCUSD_20220111
["timestamp","ask_amount","ask_price","bid_price","bid_amount"]
[1641924080921,1.26426971,42476.0,42473.0,0.00304668]
[1641924081120,1.26426971,42476.0,42473.0,0.0022]
[1641924081326,1.26426971,42476.0,42473.0,0.00304668]
[1641924081521,2.43897193,42476.0,42473.0,0.00304668]
[1641924081720,2.45197193,42476.0,42473.0,0.00304668]
[1641924081920,3.40916039,42476.0,42473.0,0.00304668]
[1641924082121,3.43488122,42476.0,42473.0,0.00304668]
[1641924082420,0.05,42475.0,42473.0,0.00194668]
[1641924082723,1.624806,42474.0,42473.0,0.00194668]
[1641924082922,1.377706,42473.0,42470.0,0.00235]
[1641924083221,1.277706,42471.0,42470.0,0.00235]
[1641924083423,0.424806,42471.0,42470.0,0.00235]
[1641924083619,1.03177536,42471.0,42470.0,0.00235]
[1641924084067,0.58177536,42471.0,42470.0,0.00235]
[1641924084267,0.424806,42471.0,42470.0,0.00235]
[1641924084467,0.0471,42471.0,42470.0,0.55235]
[1641924084667,0.0471,42471.0,42470.0,0.930056]
[1641924084867,0.11773577,42477.0,42470.0,0.930056]
[1641924084868,0.0471,42477.0,42470.0,0.930056]
[1641924085168,0.05419279,42477.0,42470.0,0.00235]
[1641924085370,0.4931693,42471.0,42470.0,0.00235]
[1641924085569,0.424806,42471.0,42470.0,0.00235]
[1641924086370,0.474806,42471.0,42470.0,0.00235]
[1641924086671,0.424806,42471.0,42470.0,0.00235]
[1641924087719,0.432806,42471.0,42470.0,0.01535]
[1641924088920,0.427706,42471.0,42470.0,0.00235]
[1641924089120,0.05,42471.0,42470.0,0.00235]
[1641924089520,0.50867361,42476.0,42470.0,0.00235]
[1641924089521,0.05,42474.0,42470.0,0.00235]
[1641924089720,0.009,42471.0,42470.0,0.01735]
[1641924089921,0.386706,42471.0,42470.0,0.01735]
[1641924090121,0.436706,42471.0,42470.0,0.01735]
[1641924090920,0.427706,42471.0,42470.0,0.00235]
[1641924091667,0.435706,42471.0,42470.0,0.01735]
[1641924092667,0.535706,42471.0,42470.0,0.01735]
[1641924092867,0.527706,42471.0,42470.0,0.00235]
[1641924093268,0.05,42471.0,42470.0,0.00235]
[1641924093470,0.1,42476.0,42470.0,0.438915]
[1641924093670,0.008,42471.0,42470.0,0.94105967]
[1641924093871,0.008,42471.0,42470.0,0.57163]
[1641924094069,0.008,42471.0,42470.0,0.453915]
[1641924094268,0.008,42471.0,42470.0,0.92533828]
[1641924094469,0.008,42471.0,42470.0,0.395056]
[1641924094869,0.32543516,42477.0,42470.0,0.380056]
[1641924095120,0.32543516,42477.0,42470.0,0.00235]
[1641924095318,0.05886484,42476.0,42470.0,0.00235]
[1641924095620,0.377706,42475.0,42471.0,0.00084671]
[1641924095816,0.32543516,42477.0,42471.0,0.00084671]
[1641924096019,0.47543516,42477.0,42471.0,0.00084671]
[1641924096216,0.37543516,42477.0,42471.0,0.00084671]
[1641924096415,0.47543516,42477.0,42471.0,0.05970771]
[1641924096617,0.38598034,42474.0,42471.0,0.058861]
[1641924096818,0.29328583,42473.0,42471.0,0.00084672]
[1641924097019,1.624806,42472.0,42471.0,0.00084672]
[1641924097518,1.774806,42472.0,42471.0,0.00084672]
[1641924097717,1.791806,42472.0,42471.0,0.00084672]
[1641924097918,1.791806,42472.0,42470.0,0.00235]
[1641924098121,1.42777073,42471.0,42470.0,0.00235]
[1641924098318,1.85257673,42471.0,42470.0,0.00235]
[1641924098517,1.95257673,42471.0,42470.0,0.00235]
[1641924098966,0.85257673,42471.0,42470.0,0.00235]
[1641924099368,0.75257673,42471.0,42470.0,0.00235]
[1641924099567,0.90257673,42471.0,42470.0,0.00235]
[1641924099766,0.92157673,42471.0,42470.0,0.00235]
[1641924100968,0.90257673,42471.0,42470.0,0.00235]
[1641924101169,1.577706,42470.0,42468.0,0.00084673]
[1641924101366,1.577706,42470.0,42466.0,0.00806496]
[1641924101367,2.55452116,42469.0,42466.0,0.00806496]
[1641924101567,0.5891,42468.0,42466.0,0.00806496]
[1641924101768,1.624806,42467.0,42466.0,0.00806496]
[1641924102168,2.60406432,42467.0,42466.0,0.00812966]
[1641924102619,1.25889541,42466.0,42462.0,0.01619424]
[1641924102819,0.283238,42464.0,42462.0,0.01619424]
[1641924103022,2.824706,42461.0,42458.0,0.03948763]
[1641924103219,2.55452116,42460.0,42458.0,0.03948763]
[1641924103422,3.44857802,42460.0,42458.0,0.03948763]
[1641924103618,3.44857802,42460.0,42457.0,0.0036024]
[1641924103619,1.577706,42459.0,42457.0,0.0036024]
[1641924103820,2.63753933,42458.0,42457.0,0.0036024]
[1641924104019,2.79465856,42458.0,42457.0,0.0036024]
[1641924104421,2.79465856,42458.0,42457.0,0.0011]
[1641924104622,2.79465856,42458.0,42457.0,0.00263008]
[1641924105021,2.79465856,42458.0,42457.0,0.0011]
[1641924105820,2.80665856,42458.0,42457.0,0.0011]
[1641924106265,1.24193087,42458.0,42457.0,0.0011]
[1641924106466,1.23693087,42458.0,42457.0,0.0011]
[1641924106665,1.52576888,42458.0,42457.0,0.0011]
[1641924107069,1.51376888,42458.0,42457.0,0.0011]
[1641924107666,1.23593087,42458.0,42457.0,0.0011]
[1641924109067,1.23593087,42458.0,42455.0,0.00084688]
[1641924109068,1.56701066,42458.0,42455.0,0.00084688]
[1641924109268,1.258912,42456.0,42455.0,0.00084688]
[1641924109472,2.322818,42456.0,42455.0,0.00084688]
[1641924109668,1.2,42455.0,42452.0,0.01005351]
[1641924109869,2.166806,42453.0,42452.0,0.01005351]
[1641924110119,2.74541462,42453.0,42452.0,0.01005351]
[1641924110320,0.367706,42450.0,42449.0,2e-06]
[1641924110521,1.153906,42450.0,42445.0,0.00307869]
[1641924110719,0.5891,42446.0,42432.0,0.34036546]
[1641924110920,0.5891,42444.0,42432.0,0.0011]
[1641924111118,0.1178451,42442.0,42435.0,0.1025024]
[1641924111425,0.1178451,42442.0,42422.0,0.0011]
[1641924111426,1.247,42437.0,42422.0,0.0011]
[1641924111623,0.5891,42423.0,42422.0,0.0011]
[1641924111822,1.014114,42423.0,42422.0,0.0011]
[1641924112017,1.114114,42423.0,42422.0,0.0011]
[1641924112419,1.61286402,42423.0,42421.0,0.0012]
[1641924112618,1.427914,42422.0,42421.0,0.0012]
[1641924112818,1.475014,42422.0,42421.0,0.0012]
[1641924113018,0.525014,42422.0,42421.0,0.0012]
[1641924113220,0.0471,42422.0,42421.0,0.0012]
[1641924113619,0.425014,42422.0,42421.0,0.0012]
[1641924113863,0.431014,42422.0,42421.0,0.0012]
[1641924114264,0.0531,42422.0,42421.0,0.0012]
[1641924114669,0.431014,42422.0,42421.0,0.0012]
[1641924114865,0.0531,42422.0,42421.0,0.0012]
[1641924115066,0.33926546,42434.0,42422.0,1.2]
[1641924115265,0.0471,42429.0,42424.0,0.053029]
[1641924115465,0.0471,42429.0,42421.0,0.34756566]
[1641924115865,0.0471,42429.0,42424.0,0.012]
[1641924116267,0.0471,42429.0,42428.0,0.25447729]
[1641924117367,0.34111436,42440.0,42428.0,0.25447729]
[1641924117368,0.0589151,42438.0,42428.0,0.63239129]
[1641924117624,0.34111436,42440.0,42428.0,0.25447729]
[1641924117625,0.00015,42440.0,42428.0,0.25447729]
[1641924117825,0.15015,42440.0,42428.0,0.27547729]
[1641924118127,0.15015,42440.0,42428.0,0.021]
[1641924118128,0.47501322,42438.0,42428.0,0.021]
[1641924118325,0.11785351,42433.0,42428.0,0.021]
[1641924118524,0.11785351,42433.0,42430.0,0.00076609]
[1641924118525,0.425014,42432.0,42430.0,0.00076609]
[1641924118925,1.35051371,42431.0,42430.0,0.00076609]
[1641924119127,1.92552771,42431.0,42430.0,0.00076609]
[1641924119524,0.4596848,42425.0,42421.0,0.0012]
[1641924119727,0.4596848,42425.0,42422.0,0.00306492]
[1641924119927,0.5096848,42425.0,42422.0,0.00306492]
[1641924120227,0.015,42431.0,42422.0,0.00306492]
[1641924120432,0.015,42431.0,42423.0,0.377914]
[1641924120628,0.015,42431.0,42424.0,0.41694494]
[1641924120828,0.015,42431.0,42425.0,0.69247411]
[1641924121028,0.46068584,42437.0,42430.0,0.47685845]
[1641924121267,0.45942956,42437.0,42430.0,0.47685845]
[1641924121866,0.45942956,42437.0,42430.0,0.48685845]
[1641924121867,0.49042956,42437.0,42430.0,0.48685845]
[1641924122067,0.49042956,42437.0,42431.0,0.00079048]
[1641924122267,0.031,42437.0,42431.0,0.00079048]
[1641924122470,0.031,42437.0,42432.0,0.32997051]
[1641924122769,0.031,42437.0,42433.0,0.377914]
[1641924122970,0.00015,42440.0,42433.0,0.377914]
[1641924123170,0.00015,42440.0,42439.0,0.30846016]
[1641924123770,0.00015,42440.0,42439.0,0.31146016]
[1641924123771,0.05415,42440.0,42439.0,0.31146016]
[1641924124173,0.051661,42440.0,42439.0,0.73080589]
[1641924124371,0.00121658,42446.0,42440.0,1.2]
[1641924124572,0.00015,42450.0,42443.0,0.058896]
[1641924124573,0.00057269,42447.0,42443.0,0.058896]
[1641924124773,0.00057269,42447.0,42444.0,0.377914]
[1641924125023,0.00057269,42447.0,42446.0,1.05]
[1641924125218,0.00057269,42447.0,42446.0,1.47541987]
[1641924125419,0.00015,42450.0,42446.0,1.86189341]
[1641924125618,0.00055365,42449.0,42448.0,1.108885]
[1641924125818,0.00055365,42449.0,42448.0,1.486799]
[1641924126019,0.00055365,42449.0,42448.0,1.536799]
[1641924126423,0.00055365,42449.0,42448.0,1.636799]
[1641924126621,0.00015,42450.0,42448.0,1.636799]
[1641924126824,0.00015,42450.0,42449.0,2.02888959]
[1641924127221,0.00015,42450.0,42449.0,2.07598959]
[1641924127422,0.00015,42460.0,42454.0,0.105955]
[1641924127625,0.00142336,42470.0,42458.0,1.1]
[1641924127821,0.00142336,42470.0,42456.0,0.00127802]
[1641924127822,0.00015,42470.0,42460.0,0.04943345]
[1641924128021,0.00015,42470.0,42465.0,0.26859624]
[1641924128422,0.00015,42470.0,42466.0,0.436781]
[1641924128769,0.00015,42470.0,42465.0,0.0927]
[1641924129170,0.377914,42469.0,42465.0,0.0927]
[1641924129773,0.527914,42469.0,42465.0,0.1027]
[1641924129974,0.11775766,42468.0,42465.0,0.01]
[1641924130173,0.63790499,42467.0,42465.0,0.01]
[1641924130473,1.04286191,42466.0,42465.0,0.01]
[1641924130672,1.42077591,42466.0,42465.0,0.01]
[1641924130973,1.42077591,42466.0,42461.0,0.28051565]
[1641924130974,0.67077591,42466.0,42461.0,0.28051565]
[1641924131273,0.37072393,42463.0,42456.0,0.00127802]
[1641924131673,0.71529969,42463.0,42456.0,0.00127802]
[1641924131878,0.377844,42462.0,42456.0,0.024]
[1641924132075,0.477844,42462.0,42456.0,0.024]
[1641924132373,0.05889076,42461.0,42456.0,0.024]
[1641924132617,0.67807328,42460.0,42456.0,0.024]
[1641924132819,0.79585525,42460.0,42456.0,0.024]
[1641924133117,0.43312789,42459.0,42449.0,0.00015]
[1641924133317,0.058901,42455.0,42449.0,0.00015]
[1641924133517,0.33396464,42454.0,42449.0,0.00015]
[1641924133715,0.377844,42453.0,42449.0,0.00015]
[1641924133915,0.377844,42453.0,42449.0,0.045]
[1641924133916,0.30223208,42452.0,42449.0,0.045]
[1641924134421,0.15,42453.0,42450.0,0.00015]
[1641924134615,0.05944662,42454.0,42450.0,0.00015]
[1641924134818,0.05944662,42454.0,42452.0,0.26984912]
[1641924134819,0.00055315,42454.0,42452.0,0.26984912]
[1641924135016,0.46050443,42458.0,42450.0,0.00015]
[1641924135219,0.00055315,42454.0,42450.0,0.00015]
[1641924135818,0.00055315,42454.0,42451.0,0.483834]
[1641924136017,0.00055315,42454.0,42451.0,0.48510675]
[1641924136271,0.30646107,42465.0,42458.0,0.2757212]
[1641924136470,0.40341258,42466.0,42458.0,0.2757212]
[1641924136669,0.6985662,42466.0,42458.0,0.2757212]
[1641924136870,0.40341258,42466.0,42458.0,0.2757212]
[1641924137072,0.05888071,42464.0,42452.0,0.058881]
[1641924137270,0.11778836,42459.0,42450.0,0.10485]
[1641924137469,0.34743826,42458.0,42450.0,0.10485]
[1641924137870,0.49743826,42458.0,42450.0,0.12385]
[1641924138170,0.05889629,42455.0,42450.0,0.37776226]
[1641924138570,0.52754598,42457.0,42450.0,0.37776226]
[1641924138571,0.05,42457.0,42450.0,0.37776226]
[1641924138771,0.00055477,42455.0,42450.0,0.37776226]
[1641924138971,0.00055477,42455.0,42451.0,0.377844]
[1641924139371,0.00055477,42455.0,42451.0,0.43673]
[1641924139771,0.47400245,42459.0,42451.0,0.45373]
[1641924140025,0.00055426,42455.0,42451.0,0.017]
[1641924141019,0.1,42458.0,42452.0,0.377844]
[1641924141220,0.00055426,42455.0,42450.0,0.34676226]
[1641924141419,0.00055426,42455.0,42451.0,0.377844]
[1641924141921,0.00055426,42455.0,42452.0,0.058884]
[1641924142223,0.05,42458.0,42453.0,0.377844]
[1641924142419,0.00055426,42456.0,42453.0,0.377844]
[1641924142619,0.00055426,42456.0,42453.0,0.436723]
[1641924142820,0.00055426,42456.0,42453.0,0.377844]
[1641924143420,0.05,42459.0,42453.0,0.362844]
[1641924143624,0.00055445,42457.0,42453.0,0.362844]
[1641924143873,0.00055445,42457.0,42453.0,0.386844]
[1641924144272,0.00055445,42457.0,42453.0,0.024]
[1641924144671,0.42737004,42456.0,42453.0,0.024]
[1641924144877,0.72374202,42455.0,42453.0,0.024]
[1641924145071,0.87374202,42455.0,42450.0,0.00015]
[1641924145272,0.77374202,42455.0,42446.0,0.00015]
[1641924145672,0.87374202,42455.0,42447.0,0.30068502]
[1641924145873,0.05889787,42451.0,42447.0,0.30068502]
[1641924146072,0.05889787,42451.0,42448.0,0.00015]
[1641924147919,0.05889787,42451.0,42448.0,0.01715]
[1641924148320,0.05889787,42451.0,42449.0,0.00015]
[1641924149423,0.05889787,42451.0,42447.0,0.30068502]
[1641924149424,0.05889787,42451.0,42448.0,0.00015]
[1641924149822,0.05889787,42451.0,42449.0,0.015]
[1641924150223,0.05889787,42451.0,42450.0,0.00015]
[1641924150424,0.05055434,42453.0,42450.0,0.00015]
[1641924150723,0.05055434,42453.0,42450.0,0.4586074]
[1641924150724,0.05,42453.0,42450.0,0.4586074]
[1641924150925,0.0005544,42453.0,42450.0,0.4586074]
[1641924151869,0.05888636,42457.0,42450.0,0.4756074]
[1641924152069,0.00055442,42454.0,42450.0,0.4756074]
[1641924152970,0.05888869,42455.0,42450.0,0.4756074]
[1641924153170,0.00055442,42454.0,42450.0,0.4586074]
[1641924153370,0.00055442,42454.0,42450.0,0.00015]
[1641924153771,0.00055442,42454.0,42448.0,0.00015]
[1641924153970,0.00055442,42454.0,42450.0,0.021]
[1641924154172,0.44182422,42457.0,42450.0,0.021]
[1641924154372,0.0594464,42453.0,42450.0,0.02115]
[1641924154572,0.427887,42452.0,42450.0,0.02115]
[1641924155027,0.15,42452.0,42450.0,0.02115]
[1641924155223,0.0594464,42453.0,42450.0,0.00015]
[1641924155421,0.05889201,42453.0,42450.0,0.00015]
[1641924155622,0.05889201,42453.0,42448.0,0.00015]
[1641924155623,0.0594464,42453.0,42448.0,0.00015]
[1641924156022,0.0594464,42453.0,42450.0,0.016]
[1641924156422,0.0594464,42453.0,42450.0,0.01615]
[1641924156624,0.05889201,42453.0,42450.0,0.01615]
[1641924156824,0.05,42455.0,42450.0,0.01615]
[1641924156825,0.00055439,42454.0,42450.0,0.01615]
[1641924157224,0.00055439,42454.0,42450.0,0.00015]
[1641924157525,0.00055439,42454.0,42448.0,0.00015]
[1641924157827,0.05888956,42454.0,42449.0,0.058887]
[1641924158023,0.0005544,42453.0,42450.0,0.014]
[1641924158223,0.0005544,42453.0,42450.0,0.01415]
[1641924159071,0.06788956,42454.0,42450.0,0.01415]
[1641924159272,0.05944396,42454.0,42450.0,0.00015]
[1641924159672,0.0005544,42454.0,42448.0,0.00015]
[1641924159873,0.05889219,42452.0,42450.0,0.014]
[1641924160273,0.05889219,42452.0,42450.0,0.01415]
[1641924161273,0.05889219,42452.0,42450.0,0.00015]
[1641924161572,0.05889219,42452.0,42448.0,0.00015]
[1641924161772,0.00055439,42453.0,42448.0,0.00015]
[1641924161773,0.05944587,42453.0,42448.0,0.00015]
[1641924161974,0.05944587,42453.0,42450.0,0.014]
[1641924162372,0.05944587,42453.0,42450.0,0.01415]
[1641924162622,0.05889148,42453.0,42450.0,0.01415]
[1641924163220,0.05889148,42453.0,42450.0,0.00015]
[1641924163621,0.05889148,42453.0,42448.0,0.00015]
[1641924163826,0.05889354,42451.0,42448.0,0.00015]
[1641924164022,0.05889354,42451.0,42450.0,0.018]
[1641924164223,0.05889354,42451.0,42450.0,0.395887]
[1641924164423,0.00055439,42454.0,42450.0,0.396037]
[1641924164825,0.00055439,42454.0,42450.0,0.01815]
[1641924165025,0.05888973,42454.0,42450.0,0.01815]
[1641924165227,0.05944413,42454.0,42450.0,0.00015]
[1641924165427,0.0005544,42454.0,42450.0,0.00015]
[1641924165629,0.0005544,42454.0,42448.0,0.00015]
[1641924166027,0.0085544,42454.0,42450.0,0.015]
[1641924166268,0.06688934,42454.0,42450.0,0.015]
[1641924166469,0.00055439,42453.0,42450.0,0.01515]
[1641924167268,0.00055439,42453.0,42450.0,0.00015]
[1641924167471,0.05888655,42456.0,42450.0,0.00015]
[1641924167670,0.0005544,42454.0,42450.0,0.00015]
[1641924167872,0.0005544,42454.0,42450.0,0.01315]
[1641924168072,0.377887,42453.0,42450.0,0.01315]
[1641924168470,0.527887,42453.0,42450.0,0.01315]
[1641924168671,0.05889962,42452.0,42450.0,0.01315]
[1641924169873,0.05889962,42452.0,42450.0,0.00015]
[1641924170118,0.06689962,42452.0,42450.0,0.01015]
[1641924170318,0.06689962,42452.0,42450.0,0.01]
[1641924171119,0.05889962,42452.0,42448.0,0.00015]
[1641924172020,0.05889962,42452.0,42448.0,0.01715]
[1641924172222,0.72587973,42464.0,42449.0,0.436773]
[1641924172223,0.05888532,42455.0,42449.0,0.436773]
[1641924172523,0.00055437,42453.0,42451.0,0.058886]
[1641924172919,0.00055437,42453.0,42450.0,0.00015]
[1641924173321,0.05944268,42453.0,42449.0,0.00015]
[1641924173522,0.05888831,42453.0,42449.0,0.00015]
[1641924173774,0.12147116,42454.0,42448.0,0.00015]
[1641924173974,0.12147116,42454.0,42449.0,0.018]
[1641924174175,0.05,42453.0,42449.0,0.018]
[1641924174375,0.05,42453.0,42450.0,0.00015]
[1641924174574,0.003133,42454.0,42450.0,0.00015]
[1641924174775,0.00055439,42453.0,42450.0,0.00015]
[1641924175175,0.05055439,42453.0,42450.0,0.00015]
[1641924175575,0.05055439,42453.0,42448.0,0.00015]
[1641924175776,0.05889413,42451.0,42448.0,0.00015]
[1641924175976,0.05889413,42451.0,42450.0,0.016]
[1641924176375,0.05889413,42451.0,42450.0,0.01615]
[1641924177178,0.05889413,42451.0,42450.0,0.00015]
[1641924177621,0.05889413,42451.0,42448.0,0.00015]
[1641924177923,0.05889413,42451.0,42450.0,0.018]
[1641924178418,0.05889413,42451.0,42450.0,0.01815]
[1641924179219,0.05889413,42451.0,42450.0,0.00015]
[1641924179619,0.05889413,42451.0,42448.0,0.058893]
[1641924179620,0.05889413,42451.0,42449.0,0.00015]
[1641924180021,0.05889413,42451.0,42450.0,0.018]
[1641924180422,0.05889413,42451.0,42450.0,0.01815]
[1641924180620,0.12091716,42454.0,42450.0,0.01815]
[1641924180621,0.06201912,42454.0,42451.0,0.058886]
[1641924180821,0.00055439,42453.0,42451.0,0.058886]
[1641924181969,0.06257353,42454.0,42451.0,0.076886]
[1641924182969,0.06201912,42454.0,42451.0,0.076886]
[1641924183271,0.06201912,42454.0,42451.0,0.058886]
[1641924183470,0.003133,42454.0,42451.0,0.058886]
[1641924183974,0.00055441,42455.0,42452.0,0.047108]
[1641924184172,0.59294726,42468.0,42454.0,1.277887]
[1641924184372,0.05887035,42466.0,42460.0,0.058872]
[1641924184872,0.59294726,42468.0,42463.0,0.047094]
[1641924185119,0.59294726,42468.0,42462.0,0.04625083]
[1641924185321,0.00015,42470.0,42462.0,0.04625083]
[1641924185519,0.57690919,42472.0,42463.0,0.058864]
[1641924185719,0.0005545,42467.0,42463.0,0.058864]
[1641924185929,0.0005545,42467.0,42464.0,0.117735]
[1641924186118,0.0005545,42467.0,42464.0,0.164826]
[1641924186720,0.42166503,42474.0,42464.0,0.164826]
[1641924186918,0.00055817,42468.0,42464.0,0.164826]
[1641924187120,0.43866243,42467.0,42464.0,0.117735]
[1641924187519,0.48866243,42467.0,42464.0,0.117735]
[1641924187719,0.64753177,42467.0,42464.0,0.117735]
[1641924187919,0.2891813,42466.0,42462.0,0.058878]
[1641924188119,0.48866243,42467.0,42464.0,0.012]
[1641924188318,0.377887,42466.0,42464.0,0.012]
[1641924188520,0.9781733,42465.0,42464.0,0.012]
[1641924188772,1.4060603,42465.0,42464.0,0.012]
[1641924188974,1.2,42464.0,42460.0,0.00015]
[1641924189179,0.377887,42463.0,42460.0,0.00015]
[1641924189373,0.36221508,42462.0,42460.0,0.00015]
[1641924189576,1.077887,42461.0,42460.0,0.00015]
[1641924189773,1.41930089,42461.0,42460.0,0.00015]
[1641924189975,1.96413426,42461.0,42460.0,0.00015]
[1641924190175,1.97513426,42461.0,42460.0,0.00215]
[1641924190774,2.01853426,42461.0,42460.0,0.00215]
[1641924190975,2.0258754,42461.0,42460.0,0.00215]
[1641924191176,1.527887,42460.0,42445.0,1.11168483]
[1641924191376,0.42197478,42451.0,42445.0,1.11168483]
[1641924191575,0.47197478,42451.0,42444.0,0.38471868]
[1641924191776,0.47197478,42451.0,42445.0,0.00078479]
[1641924192275,0.47697478,42451.0,42450.0,1.02715]
[1641924192534,0.005,42451.0,42450.0,1.02715]
[1641924192725,0.005,42451.0,42450.0,1.405015]
[1641924193427,0.37716246,42452.0,42450.0,1.378015]
[1641924193625,0.37716246,42452.0,42450.0,1.00015]
[1641924194027,0.38416246,42452.0,42450.0,1.01215]
[1641924195029,1.08624809,42451.0,42450.0,1.01215]
[1641924195229,1.46411309,42451.0,42450.0,1.01215]
[1641924195428,1.61411309,42451.0,42450.0,1.00015]
[1641924196028,1.62611309,42451.0,42450.0,1.00515]
[1641924196271,0.82611309,42451.0,42450.0,1.00515]
[1641924197074,0.44824809,42451.0,42450.0,1.00515]
[1641924197272,0.43624809,42451.0,42450.0,1.00015]
[1641924198073,0.47424809,42451.0,42450.0,1.00015]
[1641924199276,0.43624809,42451.0,42450.0,1.00015]
[1641924200124,0.45524809,42451.0,42450.0,1.00015]
[1641924200725,0.169,42451.0,42450.0,1.00015]
[1641924201124,0.069,42451.0,42450.0,1.00015]
[1641924201324,0.47716246,42452.0,42450.0,1.00015]
[1641924201524,0.45564007,42449.0,42445.0,0.04790721]
[1641924201726,0.05890091,42448.0,42445.0,0.00078521]
[1641924202128,0.05890091,42448.0,42445.0,0.00978521]
[1641924202325,0.05890091,42448.0,42445.0,0.009]
[1641924203327,0.05890091,42448.0,42444.0,0.00078519]
[1641924203529,0.05890091,42448.0,42444.0,0.106025]
[1641924203768,0.05890091,42448.0,42444.0,0.10681019]
[1641924204170,0.06390091,42448.0,42445.0,0.04724412]
[1641924204370,0.005,42448.0,42446.0,0.03943241]
[1641924204575,0.005,42448.0,42447.0,0.13279982]
[1641924204772,0.005,42448.0,42446.0,0.047113]
[1641924205370,0.99985,42450.0,42447.0,0.27908358]
[1641924205571,0.99985,42450.0,42447.0,0.39686458]
[1641924205770,0.99985,42450.0,42447.0,0.38797458]
[1641924205971,0.99985,42450.0,42447.0,0.108891]
[1641924206171,0.377865,42449.0,42447.0,0.015]
[1641924206372,0.29820688,42448.0,42447.0,0.015]
[1641924206775,0.28797347,42449.0,42447.0,0.015]
[1641924206972,0.78179085,42448.0,42447.0,0.015]
[1641924207171,0.81856298,42448.0,42447.0,0.015]
[1641924207375,0.05890331,42447.0,42445.0,0.32875709]
[1641924207824,0.05890331,42447.0,42445.0,0.00078519]
[1641924208223,0.05890331,42447.0,42445.0,0.015]
[1641924209025,0.46072285,42447.0,42445.0,0.015]
[1641924209526,0.05890705,42445.0,42442.0,0.37801184]
[1641924209728,0.05890705,42445.0,42444.0,0.00078519]
[1641924210128,0.42075105,42439.0,42430.0,0.117816]
[1641924210328,0.49802444,42438.0,42431.0,0.877865]
[1641924210728,0.860271,42438.0,42435.0,0.11782]
[1641924210929,0.377865,42437.0,42432.0,0.058919]
[1641924211129,0.477865,42437.0,42431.0,0.5]
[1641924211377,0.45675924,42430.0,42428.0,0.0999]
[1641924211575,1.127865,42429.0,42428.0,0.0999]
[1641924211774,1.127865,42429.0,42421.0,0.71262569]
[1641924211775,0.73337597,42429.0,42421.0,0.71262569]
[1641924211978,0.05892608,42427.0,42421.0,0.71262569]
[1641924212175,0.007,42429.0,42425.0,0.058928]
[1641924212377,0.007,42429.0,42426.0,0.3053142]
[1641924212975,0.06592389,42429.0,42426.0,0.3053142]
[1641924213176,0.06592389,42429.0,42426.0,0.047136]
[1641924213375,0.82118439,42429.0,42426.0,0.047136]
[1641924213879,0.05892389,42429.0,42426.0,0.047136]
[1641924214075,0.05892389,42429.0,42426.0,0.125136]
[1641924214279,0.50675924,42430.0,42428.0,0.31970312]
[1641924214477,0.50675924,42430.0,42427.0,0.082488]
[1641924214478,0.50675924,42430.0,42426.0,0.078]
[1641924214877,0.05,42430.0,42427.0,0.04836051]
[1641924215328,0.15611824,42433.0,42429.0,0.30032505]
[1641924215526,0.0972,42433.0,42430.0,0.03707568]
[1641924215728,0.0472,42433.0,42429.0,0.44062352]
[1641924216128,0.0472,42433.0,42430.0,0.035]
[1641924217131,0.10611768,42433.0,42430.0,0.035]
[1641924217329,0.15611768,42433.0,42429.0,0.44140517]
[1641924217531,0.10611768,42433.0,42429.0,0.44140517]
[1641924217732,0.15611768,42433.0,42429.0,0.44140517]
[1641924217930,0.10891768,42433.0,42429.0,0.14029847]
[1641924218131,0.10891768,42433.0,42429.0,0.08991313]
[1641924218330,0.05891768,42433.0,42429.0,0.08991313]
[1641924218970,0.05891768,42433.0,42430.0,0.33170694]
[1641924219172,0.05,42434.0,42430.0,0.39062394]
[1641924219476,0.3003054,42437.0,42430.0,0.43186894]
[1641924219871,0.4003054,42437.0,42430.0,0.43186894]
[1641924220073,0.4033054,42437.0,42430.0,0.47086894]
[1641924220279,0.05891822,42433.0,42430.0,0.47086894]
[1641924220472,0.05891822,42433.0,42431.0,0.00078274]
[1641924220674,0.9950936,42432.0,42431.0,0.00078274]
[1641924220973,1.0450936,42432.0,42431.0,0.00078274]
[1641924221173,1.4713479,42432.0,42431.0,0.00078274]
[1641924221375,1.87437682,42432.0,42431.0,0.00078274]
[1641924221576,1.97437682,42432.0,42430.0,0.039]
[1641924221773,1.37505176,42431.0,42430.0,0.039]
[1641924221975,1.42505176,42431.0,42430.0,0.039]
[1641924222174,1.52505176,42431.0,42430.0,0.05]
[1641924222374,1.52382174,42431.0,42430.0,0.05]
[1641924222627,0.82382174,42431.0,42430.0,0.05]
[1641924222828,0.15,42431.0,42430.0,0.05]
[1641924223029,0.39317743,42432.0,42430.0,0.05]
[1641924223030,0.06692313,42432.0,42430.0,0.05]
[1641924223227,0.008,42432.0,42422.0,0.26505438]
[1641924223430,0.30245478,42439.0,42428.0,0.05]
[1641924223627,0.0589144,42436.0,42429.0,0.03574037]
[1641924223831,0.00724726,42440.0,42431.0,0.041243]
[1641924224029,0.37176606,42439.0,42435.0,0.058913]
[1641924224229,0.37176606,42439.0,42434.0,0.36950796]
[1641924225028,0.37176606,42439.0,42435.0,0.04124]
[1641924225330,0.37176606,42439.0,42436.0,0.058914]
[1641924225528,0.05891327,42438.0,42436.0,0.058914]
[1641924225830,0.05891327,42438.0,42435.0,0.04124]
[1641924226129,0.12491327,42438.0,42435.0,0.04124]
[1641924226878,0.12491327,42438.0,42435.0,0.100154]
[1641924227476,0.05891327,42438.0,42435.0,0.100154]
[1641924228077,0.05891327,42438.0,42435.0,0.14069651]
[1641924228277,0.09991327,42438.0,42435.0,0.14869651]
[1641924229078,0.09991327,42438.0,42436.0,0.03908459]
[1641924229278,0.041,42438.0,42436.0,0.03908459]
[1641924229480,0.00079647,42439.0,42437.0,1.28415333]
[1641924229679,0.00079647,42439.0,42438.0,0.82723249]
[1641924229878,0.00015,42440.0,42439.0,0.04180677]
[1641924230123,0.00069863,42440.0,42439.0,0.04180677]
[1641924230325,0.00069863,42440.0,42439.0,0.05]
[1641924230531,0.00069863,42440.0,42439.0,1.027865]
[1641924230823,0.00069863,42440.0,42439.0,1.8146724]
[1641924231030,0.00015,42440.0,42439.0,1.4146724]
[1641924231424,0.51473772,42453.0,42440.0,0.8]